[Event "Late-Titled-Tuesday-Blitz-September-05-2023"]
[Site "Chess.com"]
[Date "2023.09.05"]
[Round "4"]
[White "nihalsarin"]
[Black "MITerryble"]
[Result "1-0"]
[WhiteElo "3149"]
[BlackElo "2914"]
[TimeControl "180+1"]
[EndTime "14:40:26 PDT"]
[Termination "nihalsarin won by resignation"]

1. e4 {[%clk 0:03:00.9]} 1... e6 {[%clk 0:03:00.2]} 2. d4 {[%clk 0:02:58.2]}
2... d5 {[%clk 0:03:00.8]} 3. Nd2 {[%clk 0:02:59]} 3... Be7 {[%clk 0:03:00.9]}
4. Ngf3 {[%clk 0:02:56.1]} 4... Nf6 {[%clk 0:02:59.5]} 5. Bd3 {[%clk 0:02:56]}
5... c5 {[%clk 0:02:59.8]} 6. exd5 {[%clk 0:02:52.6]} 6... Qxd5 {[%clk
0:02:58.7]} 7. dxc5 {[%clk 0:02:52.6]} 7... Qxc5 {[%clk 0:02:59.6]} 8. O-O
{[%clk 0:02:52.7]} 8... Nbd7 {[%clk 0:03:00.1]} 9. Qe2 {[%clk 0:02:53.3]} 9...
Qc7 {[%clk 0:03:00]} 10. Ne4 {[%clk 0:02:48.5]} 10... O-O {[%clk 0:03:00.2]} 11.
Bg5 {[%clk 0:02:48.4]} 11... b6 {[%clk 0:02:58.5]} 12. Rad1 {[%clk 0:02:42.2]}
12... Bb7 {[%clk 0:02:58]} 13. c3 {[%clk 0:02:42.9]} 13... Rad8 {[%clk
0:02:47.9]} 14. Bh4 {[%clk 0:02:42.5]} 14... Nc5 {[%clk 0:02:20.4]} 15. Nxf6+
{[%clk 0:02:42]} 15... Bxf6 {[%clk 0:02:19.8]} 16. Bxf6 {[%clk 0:02:42.2]} 16...
gxf6 {[%clk 0:02:20.2]} 17. Bc2 {[%clk 0:02:42.6]} 17... Qf4 {[%clk 0:02:17.8]}
18. Nd4 {[%clk 0:02:34.9]} 18... Kh8 {[%clk 0:01:57.4]} 19. g3 {[%clk
0:01:33.4]} 19... Qh6 {[%clk 0:01:25.8]} 20. b4 {[%clk 0:01:31]} 20... Nd7
{[%clk 0:01:20.9]} 21. Be4 {[%clk 0:01:31]} 21... Bxe4 {[%clk 0:01:12.5]} 22.
Qxe4 {[%clk 0:01:31.9]} 22... Ne5 {[%clk 0:01:12.9]} 23. f4 {[%clk 0:01:29.7]}
23... Ng4 {[%clk 0:01:12.4]} 24. Rd2 {[%clk 0:01:29.4]} 24... Rc8 {[%clk
0:01:00]} 25. Nc6 {[%clk 0:01:28.4]} 25... a6 {[%clk 0:00:52.8]} 26. a4 {[%clk
0:01:27]} 26... b5 {[%clk 0:00:52.9]} 27. axb5 {[%clk 0:00:57.4]} 27... axb5
{[%clk 0:00:53.8]} 28. Ra1 {[%clk 0:00:58]} 28... Rg8 {[%clk 0:00:38.2]} 29. Ne7
{[%clk 0:00:50.7]} 29... Rxc3 {[%clk 0:00:21.4]} 30. Nxg8 {[%clk 0:00:31.3]}
30... Kxg8 {[%clk 0:00:22.3]} 31. Qd4 {[%clk 0:00:19.7]} 31... Rc4 {[%clk
0:00:16.5]} 32. Qd7 {[%clk 0:00:14.5]} 32... Rxb4 {[%clk 0:00:10]} 33. Re1
{[%clk 0:00:07]} 33... f5 {[%clk 0:00:09.2]} 34. Qb7 {[%clk 0:00:06.1]} 34...
Kg7 {[%clk 0:00:04.8]} 35. Qe7 {[%clk 0:00:05.4]} 35... Qf6 {[%clk 0:00:04.7]}
36. Qxb4 {[%clk 0:00:05.2]} 36... Qh6 {[%clk 0:00:04.3]} 37. Qb2+ {[%clk
0:00:05.7]} 37... Kg6 {[%clk 0:00:04.4]} 38. Qh8 {[%clk 0:00:04.7]} 38... Nf6
{[%clk 0:00:04.4]} 39. Qd8 {[%clk 0:00:05.2]} 39... Qh3 {[%clk 0:00:04.3]} 40.
Qd4 {[%clk 0:00:04.6]} 40... h5 {[%clk 0:00:03.5]} 41. Rb2 {[%clk 0:00:05.1]}
41... h4 {[%clk 0:00:03.4]} 42. Qf2 {[%clk 0:00:05.9]} 42... Qg4 {[%clk
0:00:03.5]} 43. Qg2 {[%clk 0:00:04.6]} 43... h3 {[%clk 0:00:02.5]} 44. Qe2
{[%clk 0:00:05.3]} 44... Nd5 {[%clk 0:00:02.6]} 45. Qxg4+ {[%clk 0:00:05.5]}
45... fxg4 {[%clk 0:00:03.5]} 46. Rxb5 {[%clk 0:00:06.4]} 46... Ne7 {[%clk
0:00:04.4]} 47. Rg5+ {[%clk 0:00:06.8]} 1-0

[Event "Late-Titled-Tuesday-Blitz-September-05-2023"]
[Site "Chess.com"]
[Date "2023.09.05"]
[Round "4"]
[White "Jahonas"]
[Black "SONOFHOLYGOD"]
[Result "1-0"]
[WhiteElo "2403"]
[BlackElo "2607"]
[TimeControl "180+1"]
[EndTime "14:40:26 PDT"]
[Termination "Jahonas won on time"]

1. d4 {[%clk 0:03:00.9]} 1... Nf6 {[%clk 0:02:58.8]} 2. Nf3 {[%clk 0:03:01.2]}
2... c5 {[%clk 0:02:58.7]} 3. c3 {[%clk 0:02:59.3]} 3... g6 {[%clk 0:02:58.2]}
4. g3 {[%clk 0:02:59.5]} 4... cxd4 {[%clk 0:02:57.4]} 5. Nxd4 {[%clk 0:02:59.3]}
5... Bg7 {[%clk 0:02:57.2]} 6. Bg2 {[%clk 0:02:59.6]} 6... Nc6 {[%clk
0:02:57.5]} 7. Nxc6 {[%clk 0:02:58.5]} 7... bxc6 {[%clk 0:02:57.7]} 8. O-O
{[%clk 0:02:58.4]} 8... O-O {[%clk 0:02:57.9]} 9. b3 {[%clk 0:02:58.6]} 9... a5
{[%clk 0:02:58.2]} 10. Bb2 {[%clk 0:02:54.4]} 10... a4 {[%clk 0:02:58.3]} 11.
Na3 {[%clk 0:02:53.5]} 11... axb3 {[%clk 0:02:54.9]} 12. axb3 {[%clk 0:02:52.9]}
12... Rb8 {[%clk 0:02:50.9]} 13. Qc2 {[%clk 0:02:50.2]} 13... Ba6 {[%clk
0:02:40.5]} 14. Rfd1 {[%clk 0:02:47.9]} 14... Qb6 {[%clk 0:02:36.4]} 15. b4
{[%clk 0:02:42.9]} 15... d5 {[%clk 0:02:28.8]} 16. e3 {[%clk 0:02:39.1]} 16...
e6 {[%clk 0:02:08.7]} 17. Rab1 {[%clk 0:02:38.5]} 17... c5 {[%clk 0:02:07.4]}
18. b5 {[%clk 0:02:10.8]} 18... Bxb5 {[%clk 0:01:52.3]} 19. c4 {[%clk
0:02:09.5]} 19... dxc4 {[%clk 0:01:04.8]} 20. Nxb5 {[%clk 0:02:08.3]} 20... Qa5
{[%clk 0:00:55.2]} 21. Bxf6 {[%clk 0:01:55.2]} 21... Bxf6 {[%clk 0:00:53.5]} 22.
Qxc4 {[%clk 0:01:54.7]} 22... Rfd8 {[%clk 0:00:51]} 23. Bf1 {[%clk 0:01:36.4]}
23... h5 {[%clk 0:00:47.9]} 24. h4 {[%clk 0:01:35.1]} 24... Kg7 {[%clk
0:00:45.5]} 25. Qc2 {[%clk 0:01:31.9]} 25... Rxd1 {[%clk 0:00:26.5]} 26. Qxd1
{[%clk 0:01:30.2]} 26... c4 {[%clk 0:00:26.1]} 27. Bxc4 {[%clk 0:01:28.4]} 27...
Rc8 {[%clk 0:00:26.3]} 28. Qb3 {[%clk 0:01:25.8]} 28... Qd8 {[%clk 0:00:24.3]}
29. Bf1 {[%clk 0:01:24.3]} 29... Rc5 {[%clk 0:00:23.5]} 30. Rd1 {[%clk
0:01:23.2]} 30... Qb8 {[%clk 0:00:23.3]} 31. Nd4 {[%clk 0:01:20.7]} 31... Qa8
{[%clk 0:00:20.5]} 32. Bg2 {[%clk 0:01:16.7]} 32... Qc8 {[%clk 0:00:19.1]} 33.
Qd3 {[%clk 0:01:16.5]} 33... Rc7 {[%clk 0:00:18.4]} 34. Qe2 {[%clk 0:01:15.6]}
34... Rd7 {[%clk 0:00:18.7]} 35. Qf3 {[%clk 0:01:15.4]} 35... Qd8 {[%clk
0:00:16.1]} 36. Re1 {[%clk 0:01:09.4]} 36... e5 {[%clk 0:00:14.7]} 37. Nc6
{[%clk 0:01:08.2]} 37... Qc7 {[%clk 0:00:15]} 38. Qe4 {[%clk 0:01:07.3]} 38...
Rd2 {[%clk 0:00:14.4]} 39. Rf1 {[%clk 0:00:57.6]} 39... Qd6 {[%clk 0:00:14.6]}
40. Qc4 {[%clk 0:00:56.6]} 40... Rb2 {[%clk 0:00:12.6]} 41. Be4 {[%clk
0:00:55.7]} 41... Rb6 {[%clk 0:00:11.5]} 42. Qc2 {[%clk 0:00:53.9]} 42... Ra6
{[%clk 0:00:10.1]} 43. Rd1 {[%clk 0:00:53.9]} 43... Qc7 {[%clk 0:00:09.7]} 44.
Rc1 {[%clk 0:00:46.8]} 44... Rb6 {[%clk 0:00:09.1]} 45. Na5 {[%clk 0:00:45.4]}
45... Qb8 {[%clk 0:00:08.7]} 46. Nc4 {[%clk 0:00:45.1]} 46... Rb4 {[%clk
0:00:08.6]} 47. Qd3 {[%clk 0:00:45]} 47... Qc7 {[%clk 0:00:08]} 48. Bd5 {[%clk
0:00:44]} 48... Qc5 {[%clk 0:00:07.1]} 49. Qe4 {[%clk 0:00:43.3]} 49... Rb8
{[%clk 0:00:05.9]} 50. Rd1 {[%clk 0:00:42.8]} 50... Rd8 {[%clk 0:00:06.2]} 51.
Nxe5 {[%clk 0:00:41.7]} 51... Re8 {[%clk 0:00:06.4]} 52. f4 {[%clk 0:00:40.7]}
52... Qd6 {[%clk 0:00:03.9]} 53. Qd4 {[%clk 0:00:40.4]} 53... Qa6 {[%clk
0:00:03.1]} 54. Bxf7 {[%clk 0:00:37.2]} 54... Re7 {[%clk 0:00:01.5]} 55. Bc4
{[%clk 0:00:35.8]} 55... Qa8 {[%clk 0:00:01.3]} 56. Qd5 {[%clk 0:00:35.9]} 56...
Qb8 {[%clk 0:00:01.6]} 57. Nf3 {[%clk 0:00:32.6]} 57... Qb2 {[%clk 0:00:01.4]}
58. Qd3 {[%clk 0:00:26.6]} 58... Rc7 {[%clk 0:00:01.2]} 59. Nd4 {[%clk
0:00:25.8]} 1-0

[Event "Late-Titled-Tuesday-Blitz-September-05-2023"]
[Site "Chess.com"]
[Date "2023.09.05"]
[Round "4"]
[White "bascheyaro"]
[Black "PotapovaM"]
[Result "1-0"]
[WhiteElo "2812"]
[BlackElo "2663"]
[TimeControl "180+1"]
[EndTime "14:40:28 PDT"]
[Termination "bascheyaro won by resignation"]

1. d4 {[%clk 0:03:00.9]} 1... Nf6 {[%clk 0:02:55.9]} 2. Nf3 {[%clk 0:03:01.2]}
2... d5 {[%clk 0:02:55]} 3. Bf4 {[%clk 0:03:01]} 3... c5 {[%clk 0:02:49]} 4. e3
{[%clk 0:03:01.1]} 4... e6 {[%clk 0:02:37.6]} 5. Be2 {[%clk 0:03:01.1]} 5... Nc6
{[%clk 0:02:31.9]} 6. O-O {[%clk 0:03:01]} 6... Bd6 {[%clk 0:02:31.2]} 7. dxc5
{[%clk 0:03:01.2]} 7... Bxc5 {[%clk 0:02:30.5]} 8. c4 {[%clk 0:03:01.1]} 8...
O-O {[%clk 0:02:30.1]} 9. Nc3 {[%clk 0:03:00.3]} 9... dxc4 {[%clk 0:02:29.1]}
10. Bxc4 {[%clk 0:02:59.3]} 10... a6 {[%clk 0:02:28.8]} 11. Be2 {[%clk
0:02:43.3]} 11... Be7 {[%clk 0:02:14.7]} 12. Rc1 {[%clk 0:02:41]} 12... Qxd1
{[%clk 0:02:07]} 13. Rfxd1 {[%clk 0:02:40.8]} 13... Bd7 {[%clk 0:02:07.9]} 14.
Ne4 {[%clk 0:02:32.6]} 14... Nd5 {[%clk 0:02:02.2]} 15. Bd6 {[%clk 0:02:18]}
15... Rfd8 {[%clk 0:01:49]} 16. Bxe7 {[%clk 0:02:02.3]} 16... Ncxe7 {[%clk
0:01:49.9]} 17. Nc5 {[%clk 0:01:58.9]} 17... Rab8 {[%clk 0:01:32.3]} 18. e4
{[%clk 0:01:44.8]} 18... Nf4 {[%clk 0:01:30]} 19. Bf1 {[%clk 0:01:24.1]} 19...
Bc6 {[%clk 0:01:29.3]} 20. Ne5 {[%clk 0:01:03.6]} 20... Rxd1 {[%clk 0:01:22.2]}
21. Rxd1 {[%clk 0:01:03.5]} 21... Nfg6 {[%clk 0:01:14]} 22. Nc4 {[%clk
0:01:00.4]} 22... h5 {[%clk 0:00:59]} 23. f3 {[%clk 0:00:57.7]} 23... h4 {[%clk
0:00:58.5]} 24. Nb6 {[%clk 0:00:46.9]} 24... Kh7 {[%clk 0:00:47.8]} 25. b4
{[%clk 0:00:46.5]} 25... h3 {[%clk 0:00:40.6]} 26. g3 {[%clk 0:00:44.7]} 26...
Ne5 {[%clk 0:00:41]} 27. Be2 {[%clk 0:00:43.5]} 27... g5 {[%clk 0:00:36.1]} 28.
Kf2 {[%clk 0:00:38.2]} 28... N7g6 {[%clk 0:00:32.5]} 29. a4 {[%clk 0:00:32.7]}
29... Kg7 {[%clk 0:00:29.2]} 30. b5 {[%clk 0:00:30.9]} 30... axb5 {[%clk
0:00:30.1]} 31. axb5 {[%clk 0:00:31.2]} 31... Be8 {[%clk 0:00:30.7]} 32. Ke3
{[%clk 0:00:30.6]} 32... Kf6 {[%clk 0:00:29.4]} 33. f4 {[%clk 0:00:30.5]} 33...
g4 {[%clk 0:00:11.7]} 34. fxe5+ {[%clk 0:00:28.8]} 34... Nxe5 {[%clk 0:00:12.6]}
35. Kf4 {[%clk 0:00:22]} 35... Ng6+ {[%clk 0:00:08.2]} 36. Kxg4 {[%clk
0:00:19.9]} 36... Ke7 {[%clk 0:00:09.1]} 37. Kxh3 {[%clk 0:00:11.4]} 37... Ne5
{[%clk 0:00:09.4]} 38. Kg2 {[%clk 0:00:11.3]} 38... f6 {[%clk 0:00:09.8]} 39.
Kf2 {[%clk 0:00:11.5]} 39... Bg6 {[%clk 0:00:10.1]} 40. h4 {[%clk 0:00:10.4]}
40... Rh8 {[%clk 0:00:10.8]} 41. Ncd7 {[%clk 0:00:09.8]} 41... Nf7 {[%clk
0:00:09.4]} 42. Nc5 {[%clk 0:00:09.4]} 42... Nd6 {[%clk 0:00:09.6]} 43. Nc4
{[%clk 0:00:09.3]} 43... Nxb5 {[%clk 0:00:08.8]} 44. Rd7+ {[%clk 0:00:09.4]}
44... Ke8 {[%clk 0:00:09.1]} 45. Rxb7 {[%clk 0:00:09.7]} 45... Rh6 {[%clk
0:00:08.7]} 46. Rxb5 {[%clk 0:00:09.8]} 46... Bf7 {[%clk 0:00:08.3]} 47. Nd6+
{[%clk 0:00:09.7]} 47... Ke7 {[%clk 0:00:08.7]} 48. Nxf7 {[%clk 0:00:10.6]}
48... Kxf7 {[%clk 0:00:09.6]} 49. Rb7+ {[%clk 0:00:11.1]} 49... Kg6 {[%clk
0:00:09.6]} 50. Nxe6 {[%clk 0:00:11.7]} 50... Rh8 {[%clk 0:00:09.7]} 51. Rg7+
{[%clk 0:00:11.6]} 51... Kh6 {[%clk 0:00:10.6]} 52. g4 {[%clk 0:00:11.5]} 1-0

[Event "Late-Titled-Tuesday-Blitz-September-05-2023"]
[Site "Chess.com"]
[Date "2023.09.05"]
[Round "4"]
[White "GMZaven"]
[Black "Hamisandwich"]
[Result "0-1"]
[WhiteElo "2666"]
[BlackElo "2666"]
[TimeControl "180+1"]
[EndTime "14:40:29 PDT"]
[Termination "Hamisandwich won by resignation"]

1. e4 {[%clk 0:02:57.3]} 1... e5 {[%clk 0:02:59.1]} 2. Nf3 {[%clk 0:02:51.1]}
2... d6 {[%clk 0:02:59]} 3. Bc4 {[%clk 0:02:50.5]} 3... Be7 {[%clk 0:02:53]} 4.
c3 {[%clk 0:02:49.5]} 4... Nf6 {[%clk 0:02:50.8]} 5. d4 {[%clk 0:02:49]} 5...
O-O {[%clk 0:02:45.6]} 6. Nbd2 {[%clk 0:02:47.7]} 6... exd4 {[%clk 0:02:44.1]}
7. cxd4 {[%clk 0:02:47.3]} 7... d5 {[%clk 0:02:43.1]} 8. exd5 {[%clk 0:02:47.4]}
8... Nxd5 {[%clk 0:02:44]} 9. O-O {[%clk 0:02:46.9]} 9... Nc6 {[%clk 0:02:35.2]}
10. h3 {[%clk 0:02:45.5]} 10... Nb6 {[%clk 0:02:32.5]} 11. Bd3 {[%clk
0:02:38.2]} 11... Nxd4 {[%clk 0:02:29.5]} 12. Nxd4 {[%clk 0:02:37.8]} 12... Qxd4
{[%clk 0:02:30.4]} 13. Nf3 {[%clk 0:02:37.5]} 13... Qd6 {[%clk 0:02:29]} 14. Qc2
{[%clk 0:02:16.7]} 14... h6 {[%clk 0:02:17.2]} 15. Re1 {[%clk 0:02:16.6]} 15...
Bf6 {[%clk 0:02:11.8]} 16. Be3 {[%clk 0:02:15.4]} 16... Rd8 {[%clk 0:01:41.4]}
17. Rad1 {[%clk 0:02:13.6]} 17... Nd5 {[%clk 0:01:41.9]} 18. Bc5 {[%clk
0:02:02.7]} 18... Qc6 {[%clk 0:01:42.2]} 19. Ne5 {[%clk 0:01:38.9]} 19... Bxe5
{[%clk 0:01:39.5]} 20. Rxe5 {[%clk 0:01:39]} 20... Be6 {[%clk 0:01:37.9]} 21.
Rc1 {[%clk 0:01:27.9]} 21... b6 {[%clk 0:01:20.5]} 22. Bh7+ {[%clk 0:01:27.2]}
22... Kh8 {[%clk 0:01:20.4]} 23. Ba3 {[%clk 0:01:26.9]} 23... Qxc2 {[%clk
0:01:17.8]} 24. Bxc2 {[%clk 0:01:26.7]} 24... c5 {[%clk 0:01:17.4]} 25. Rce1
{[%clk 0:01:25.1]} 25... Rac8 {[%clk 0:01:06]} 26. b3 {[%clk 0:01:24.9]} 26...
Nb4 {[%clk 0:00:59.9]} 27. Bb1 {[%clk 0:01:23.8]} 27... Nd3 {[%clk 0:00:55]} 28.
Bxd3 {[%clk 0:01:23.2]} 28... Rxd3 {[%clk 0:00:55.9]} 29. Bc1 {[%clk 0:01:22.9]}
29... Rcd8 {[%clk 0:00:54]} 30. f3 {[%clk 0:01:19.3]} 30... a5 {[%clk 0:00:54]}
31. Kf2 {[%clk 0:01:18.8]} 31... Kg8 {[%clk 0:00:52.8]} 32. h4 {[%clk
0:01:18.4]} 32... Rd1 {[%clk 0:00:50.2]} 33. Bf4 {[%clk 0:01:16.8]} 33... Rxe1
{[%clk 0:00:46.9]} 34. Rxe1 {[%clk 0:01:17.3]} 34... Rc8 {[%clk 0:00:40.4]} 35.
Rd1 {[%clk 0:01:16.9]} 35... b5 {[%clk 0:00:35.4]} 36. Rd6 {[%clk 0:01:12.8]}
36... c4 {[%clk 0:00:24]} 37. bxc4 {[%clk 0:01:12.1]} 37... Rxc4 {[%clk
0:00:24.9]} 38. Bd2 {[%clk 0:01:11.9]} 38... Ra4 {[%clk 0:00:23.9]} 39. Ke3
{[%clk 0:01:06.8]} 39... Ra3+ {[%clk 0:00:21.8]} 40. Kf4 {[%clk 0:01:03.7]}
40... Rxa2 {[%clk 0:00:22.7]} 41. g4 {[%clk 0:01:02.9]} 41... b4 {[%clk
0:00:20.4]} 42. Ke3 {[%clk 0:01:03]} 42... b3 {[%clk 0:00:18.6]} 43. Rb6 {[%clk
0:01:02.4]} 43... a4 {[%clk 0:00:15.3]} 44. h5 {[%clk 0:00:58.4]} 44... a3
{[%clk 0:00:13.7]} 45. f4 {[%clk 0:00:57.5]} 45... Rxd2 {[%clk 0:00:09.4]} 46.
Kxd2 {[%clk 0:00:55.4]} 46... a2 {[%clk 0:00:10]} 47. Ra6 {[%clk 0:00:48]} 47...
b2 {[%clk 0:00:09.8]} 48. f5 {[%clk 0:00:46.5]} 48... b1=Q {[%clk 0:00:09.3]}
49. fxe6 {[%clk 0:00:46]} 49... fxe6 {[%clk 0:00:10.2]} 50. Ra8+ {[%clk
0:00:44.7]} 50... Kf7 {[%clk 0:00:10.7]} 51. g5 {[%clk 0:00:44.7]} 51... hxg5
{[%clk 0:00:10.7]} 52. Ra7+ {[%clk 0:00:45.2]} 52... Kf6 {[%clk 0:00:11.2]} 53.
Ra6 {[%clk 0:00:46.1]} 53... a1=Q {[%clk 0:00:11]} 0-1

[Event "Late-Titled-Tuesday-Blitz-September-05-2023"]
[Site "Chess.com"]
[Date "2023.09.05"]
[Round "4"]
[White "szachuspl"]
[Black "kingofthenil"]
[Result "0-1"]
[WhiteElo "2541"]
[BlackElo "2775"]
[TimeControl "180+1"]
[EndTime "14:40:30 PDT"]
[Termination "kingofthenil won by checkmate"]

1. d4 {[%clk 0:03:00.9]} 1... d5 {[%clk 0:02:53.9]} 2. c4 {[%clk 0:03:00.8]}
2... c6 {[%clk 0:02:52.6]} 3. Nc3 {[%clk 0:03:00.5]} 3... Nf6 {[%clk 0:02:51.8]}
4. Nf3 {[%clk 0:03:00.4]} 4... a6 {[%clk 0:02:43.8]} 5. c5 {[%clk 0:02:54.7]}
5... Bg4 {[%clk 0:02:19.4]} 6. Ne5 {[%clk 0:02:53.4]} 6... Nbd7 {[%clk
0:02:16.7]} 7. Nxg4 {[%clk 0:02:50]} 7... Nxg4 {[%clk 0:02:17.1]} 8. e4 {[%clk
0:02:48.5]} 8... Ngf6 {[%clk 0:02:17.7]} 9. exd5 {[%clk 0:02:38.3]} 9... cxd5
{[%clk 0:02:13]} 10. Be2 {[%clk 0:02:35.8]} 10... e6 {[%clk 0:02:13.4]} 11. O-O
{[%clk 0:02:35.4]} 11... Be7 {[%clk 0:02:11.8]} 12. b4 {[%clk 0:02:35.3]} 12...
O-O {[%clk 0:02:12.2]} 13. Bf4 {[%clk 0:02:35.1]} 13... Ne8 {[%clk 0:02:10.7]}
14. a4 {[%clk 0:02:32.5]} 14... Bf6 {[%clk 0:02:09.3]} 15. b5 {[%clk 0:02:25.3]}
15... Nxc5 {[%clk 0:02:08.8]} 16. dxc5 {[%clk 0:02:03.8]} 16... Bxc3 {[%clk
0:02:01.5]} 17. Rc1 {[%clk 0:02:03.4]} 17... Bf6 {[%clk 0:01:55.3]} 18. b6
{[%clk 0:01:54.2]} 18... Bg5 {[%clk 0:01:46.8]} 19. Bxg5 {[%clk 0:01:50.5]}
19... Qxg5 {[%clk 0:01:47.7]} 20. c6 {[%clk 0:01:49.9]} 20... bxc6 {[%clk
0:01:47]} 21. Rxc6 {[%clk 0:01:49.8]} 21... a5 {[%clk 0:01:42.1]} 22. Qb3 {[%clk
0:01:39.3]} 22... Qe5 {[%clk 0:01:40.2]} 23. Bd3 {[%clk 0:01:21.7]} 23... Nd6
{[%clk 0:01:35.8]} 24. Rfc1 {[%clk 0:01:20.4]} 24... Rab8 {[%clk 0:01:33]} 25.
g3 {[%clk 0:01:19.8]} 25... h5 {[%clk 0:01:29.7]} 26. h4 {[%clk 0:01:17]} 26...
Rfd8 {[%clk 0:01:22.8]} 27. Rc7 {[%clk 0:01:13]} 27... g5 {[%clk 0:01:16.7]} 28.
hxg5 {[%clk 0:01:12]} 28... Qxg5 {[%clk 0:01:17.6]} 29. b7 {[%clk 0:00:53.2]}
29... h4 {[%clk 0:01:17.2]} 30. Kg2 {[%clk 0:00:53.1]} 30... hxg3 {[%clk
0:01:16.4]} 31. fxg3 {[%clk 0:00:53.2]} 31... Rxb7 {[%clk 0:01:12.2]} 32. Rxb7
{[%clk 0:00:44]} 32... Qd2+ {[%clk 0:00:52.3]} 33. Kh3 {[%clk 0:00:43]} 33...
Nxb7 {[%clk 0:00:48.5]} 34. Rf1 {[%clk 0:00:32.1]} 34... Qb4 {[%clk 0:00:14.8]}
35. Qd1 {[%clk 0:00:28.2]} 35... Kg7 {[%clk 0:00:11.8]} 36. Rf4 {[%clk
0:00:24.2]} 36... Rh8+ {[%clk 0:00:11.3]} 37. Kg2 {[%clk 0:00:24.6]} 37... Qb2+
{[%clk 0:00:11.3]} 38. Bc2 {[%clk 0:00:25.2]} 38... Nd6 {[%clk 0:00:09.6]} 39.
Qg4+ {[%clk 0:00:25.1]} 39... Kf8 {[%clk 0:00:09.9]} 40. Rf2 {[%clk 0:00:25.4]}
40... Qe5 {[%clk 0:00:08.5]} 41. Bd3 {[%clk 0:00:24.9]} 41... Rg8 {[%clk
0:00:08.6]} 42. Qf3 {[%clk 0:00:24.3]} 42... f5 {[%clk 0:00:07.8]} 43. Re2
{[%clk 0:00:22.7]} 43... Ne4 {[%clk 0:00:07.3]} 44. Bxe4 {[%clk 0:00:22]} 44...
dxe4 {[%clk 0:00:08.2]} 45. Qa3+ {[%clk 0:00:20.4]} 45... Kf7 {[%clk 0:00:08]}
46. Rc2 {[%clk 0:00:20.2]} 46... f4 {[%clk 0:00:07.8]} 47. Rf2 {[%clk
0:00:17.2]} 47... Ke8 {[%clk 0:00:06.7]} 48. Qc1 {[%clk 0:00:12.5]} 48... Rxg3+
{[%clk 0:00:06.8]} 49. Kf1 {[%clk 0:00:13.2]} 49... e3 {[%clk 0:00:06.2]} 50.
Qc8+ {[%clk 0:00:13.2]} 50... Ke7 {[%clk 0:00:06.7]} 51. Qb7+ {[%clk 0:00:13.3]}
51... Kf6 {[%clk 0:00:07.2]} 52. Rb2 {[%clk 0:00:11.5]} 52... Qf5 {[%clk
0:00:04.2]} 53. Qb8 {[%clk 0:00:10]} 53... Qd3+ {[%clk 0:00:04.1]} 54. Ke1
{[%clk 0:00:09.7]} 54... Rg1# {[%clk 0:00:03.8]} 0-1

[Event "Late-Titled-Tuesday-Blitz-September-05-2023"]
[Site "Chess.com"]
[Date "2023.09.05"]
[Round "4"]
[White "boldpilot22622"]
[Black "nevermind242"]
[Result "0-1"]
[WhiteElo "2511"]
[BlackElo "2355"]
[TimeControl "180+1"]
[EndTime "14:40:31 PDT"]
[Termination "nevermind242 won by resignation"]

1. e4 {[%clk 0:03:00.9]} 1... e6 {[%clk 0:02:59.5]} 2. d4 {[%clk 0:03:00.1]}
2... d5 {[%clk 0:02:59.9]} 3. Nc3 {[%clk 0:02:59.2]} 3... Nc6 {[%clk 0:03:00.2]}
4. e5 {[%clk 0:02:57.9]} 4... f6 {[%clk 0:03:00.3]} 5. f4 {[%clk 0:02:58]} 5...
fxe5 {[%clk 0:03:00.7]} 6. dxe5 {[%clk 0:02:56]} 6... Bc5 {[%clk 0:02:59.7]} 7.
Nf3 {[%clk 0:02:55.2]} 7... Nh6 {[%clk 0:02:59.8]} 8. Qe2 {[%clk 0:02:43.7]}
8... O-O {[%clk 0:02:51.7]} 9. Bd2 {[%clk 0:02:11.1]} 9... a6 {[%clk 0:02:43.1]}
10. O-O-O {[%clk 0:02:11.7]} 10... b5 {[%clk 0:02:43]} 11. Kb1 {[%clk
0:02:07.4]} 11... Bd7 {[%clk 0:02:27.9]} 12. Ng5 {[%clk 0:02:00.2]} 12... Qe7
{[%clk 0:02:04.8]} 13. Qh5 {[%clk 0:01:53.4]} 13... Nd4 {[%clk 0:01:40.5]} 14.
Bd3 {[%clk 0:01:47.6]} 14... b4 {[%clk 0:01:12.3]} 15. Ne2 {[%clk 0:01:42.9]}
15... Nxe2 {[%clk 0:01:10.7]} 16. Bxh7+ {[%clk 0:01:39.3]} 16... Kh8 {[%clk
0:01:10.7]} 17. Qxe2 {[%clk 0:01:38.4]} 17... Be8 {[%clk 0:00:52.6]} 18. g4
{[%clk 0:01:31.5]} 18... a5 {[%clk 0:00:46]} 19. Qg2 {[%clk 0:01:22.7]} 19... a4
{[%clk 0:00:41.1]} 20. Bd3 {[%clk 0:01:19]} 20... b3 {[%clk 0:00:39.8]} 21. Qh3
{[%clk 0:01:03.3]} 21... a3 {[%clk 0:00:23.5]} 22. cxb3 {[%clk 0:01:00.3]} 22...
axb2 {[%clk 0:00:23.1]} 23. Nxe6 {[%clk 0:00:45.8]} 23... Qxe6 {[%clk
0:00:18.4]} 24. f5 {[%clk 0:00:46.4]} 24... Qxe5 {[%clk 0:00:09.9]} 25. Rhe1
{[%clk 0:00:39.7]} 25... Qf6 {[%clk 0:00:04.8]} 26. Re6 {[%clk 0:00:34.3]} 26...
Rxa2 {[%clk 0:00:01.9]} 27. Rxf6 {[%clk 0:00:23.3]} 27... Ra1+ {[%clk
0:00:01.9]} 28. Kxb2 {[%clk 0:00:22.6]} 28... Bd4+ {[%clk 0:00:02.3]} 29. Kc2
{[%clk 0:00:22.1]} 29... Ra2+ {[%clk 0:00:02.2]} 30. Kc1 {[%clk 0:00:18.1]}
30... Rxf6 {[%clk 0:00:01.7]} 31. Be3 {[%clk 0:00:06.2]} 31... Rc6+ {[%clk
0:00:02.6]} 32. Bc4 {[%clk 0:00:03.4]} 32... dxc4 {[%clk 0:00:03.2]} 33. Bxd4
{[%clk 0:00:03.3]} 33... cxb3+ {[%clk 0:00:03.7]} 34. Kb1 {[%clk 0:00:03.8]}
34... Bf7 {[%clk 0:00:03.3]} 35. Bb2 {[%clk 0:00:03.6]} 35... Rc2 {[%clk
0:00:02.6]} 36. Qd3 {[%clk 0:00:02.4]} 36... Rcxb2+ {[%clk 0:00:02.5]} 37. Kc1
{[%clk 0:00:02.6]} 37... Rc2+ {[%clk 0:00:03]} 38. Kb1 {[%clk 0:00:03.1]} 38...
Rab2+ {[%clk 0:00:03.5]} 39. Ka1 {[%clk 0:00:02]} 39... Ra2+ {[%clk 0:00:04.2]}
40. Kb1 {[%clk 0:00:02.9]} 40... Rab2+ {[%clk 0:00:04.7]} 41. Ka1 {[%clk
0:00:03.1]} 41... Kh7 {[%clk 0:00:03.5]} 42. f6+ {[%clk 0:00:02.4]} 42... Bg6
{[%clk 0:00:03.9]} 43. fxg7 {[%clk 0:00:02]} 43... Ra2+ {[%clk 0:00:03.7]} 44.
Kb1 {[%clk 0:00:01.4]} 44... Bxd3 {[%clk 0:00:04.6]} 45. g8=Q+ {[%clk
0:00:01.2]} 45... Kxg8 {[%clk 0:00:04.2]} 46. Rxd3 {[%clk 0:00:02.1]} 46... Rxh2
{[%clk 0:00:04.5]} 47. Rxb3 {[%clk 0:00:02.6]} 47... Rag2 {[%clk 0:00:03.5]} 0-1